[Event "*** SCC Grand Prix: Titled Tuesday Blitz"]
[Site "Chess.com"]
[Date "2020.07.14"]
[Round "6"]
[White "pfalcon1949"]
[Black "Gandrade2"]
[Result "0-1"]
[WhiteElo "2058"]
[BlackElo "2117"]
[TimeControl "180+1"]
[EndTime "11:06:39 PDT"]
[Termination "Gandrade2 won by checkmate"]

1. d4 {[%clk 0:03:00.9]} 1... Nf6 {[%clk 0:02:59.3]} 2. c4 {[%clk 0:03:01.8]}
2... g6 {[%clk 0:02:59]} 3. Nc3 {[%clk 0:03:02.7]} 3... Bg7 {[%clk 0:02:58.7]}
4. e4 {[%clk 0:03:03.6]} 4... d6 {[%clk 0:02:58.7]} 5. Nge2 {[%clk 0:03:04.5]}
5... O-O {[%clk 0:02:56.9]} 6. Ng3 {[%clk 0:03:05.4]} 6... c5 {[%clk 0:02:52.1]}
7. Be2 {[%clk 0:03:06.3]} 7... cxd4 {[%clk 0:02:51.3]} 8. Qxd4 {[%clk
0:03:03.2]} 8... Nc6 {[%clk 0:02:51.5]} 9. Qd1 {[%clk 0:03:02.6]} 9... Nd7
{[%clk 0:02:41.8]} 10. O-O {[%clk 0:03:03]} 10... a6 {[%clk 0:02:19.7]} 11. Be3
{[%clk 0:03:02.2]} 11... Qc7 {[%clk 0:02:09.6]} 12. Rc1 {[%clk 0:02:59.6]} 12...
Nc5 {[%clk 0:02:00]} 13. Nd5 {[%clk 0:02:53.2]} 13... Qd8 {[%clk 0:01:58.6]} 14.
b3 {[%clk 0:02:50.1]} 14... Be6 {[%clk 0:01:58.3]} 15. Qd2 {[%clk 0:02:48.6]}
15... Bxd5 {[%clk 0:01:58.4]} 16. exd5 {[%clk 0:02:48.1]} 16... Ne5 {[%clk
0:01:46.6]} 17. f4 {[%clk 0:02:47.5]} 17... Ned7 {[%clk 0:01:46.5]} 18. f5
{[%clk 0:02:47]} 18... a5 {[%clk 0:01:43.2]} 19. Bh6 {[%clk 0:02:45.6]} 19...
Nf6 {[%clk 0:01:39.2]} 20. Bxg7 {[%clk 0:02:45.5]} 20... Kxg7 {[%clk 0:01:39.2]}
21. Qd4 {[%clk 0:02:38.2]} 21... Qb6 {[%clk 0:01:26.9]} 22. Kh1 {[%clk
0:02:26.8]} 22... Nd7 {[%clk 0:01:25.7]} 23. Qh4 {[%clk 0:02:23.8]} 23... a4
{[%clk 0:01:06.6]} 24. fxg6 {[%clk 0:02:19.4]} 24... hxg6 {[%clk 0:01:05.8]} 25.
Qg5 {[%clk 0:02:17.2]} 25... Rh8 {[%clk 0:00:48.6]} 26. Nf5+ {[%clk 0:02:15.7]}
26... Kf8 {[%clk 0:00:49.2]} 27. Ng3 {[%clk 0:01:45.9]} 27... axb3 {[%clk
0:00:40.4]} 28. axb3 {[%clk 0:01:46.8]} 28... Ra2 {[%clk 0:00:29.2]} 29. Rc3
{[%clk 0:01:42.3]} 29... Qd4 {[%clk 0:00:28.1]} 30. Rcf3 {[%clk 0:01:40.6]}
30... Ra1 {[%clk 0:00:22.2]} 31. h3 {[%clk 0:01:37.5]} 31... Rxf1+ {[%clk
0:00:21]} 32. Rxf1 {[%clk 0:01:37.5]} 32... Qe5 {[%clk 0:00:16.6]} 33. b4 {[%clk
0:01:30.5]} 33... Qxg5 {[%clk 0:00:15.6]} 34. c5 {[%clk 0:01:29.7]} 34... dxc5
{[%clk 0:00:15.7]} 35. bxc5 {[%clk 0:01:29.5]} 35... Qxd5 {[%clk 0:00:15.1]} 36.
Bf3 {[%clk 0:01:28.2]} 36... Qxc5 {[%clk 0:00:13.5]} 37. Rd1 {[%clk 0:01:27]}
37... Ne5 {[%clk 0:00:13]} 38. Rf1 {[%clk 0:01:26.3]} 38... Nxf3 {[%clk
0:00:12.8]} 39. Rxf3 {[%clk 0:01:27]} 39... Qc1+ {[%clk 0:00:13.2]} 40. Kh2
{[%clk 0:01:26.6]} 40... Qc7 {[%clk 0:00:13.5]} 41. Kg1 {[%clk 0:01:26]} 41...
Nh5 {[%clk 0:00:11.6]} 42. Kf2 {[%clk 0:01:22.1]} 42... Nxg3 {[%clk 0:00:11.7]}
43. Rxg3 {[%clk 0:01:21.6]} 43... Qxg3+ {[%clk 0:00:12.3]} 44. Kxg3 {[%clk
0:01:21.6]} 44... Kg7 {[%clk 0:00:13.2]} 45. Kf3 {[%clk 0:01:21.8]} 45... Rd8
{[%clk 0:00:13.8]} 46. Ke4 {[%clk 0:01:22.3]} 46... Kf6 {[%clk 0:00:14.3]} 47.
Kf4 {[%clk 0:01:22.2]} 47... b5 {[%clk 0:00:14.8]} 48. Ke3 {[%clk 0:01:22.6]}
48... b4 {[%clk 0:00:15.4]} 49. g4 {[%clk 0:01:22.6]} 49... b3 {[%clk
0:00:16.1]} 50. Kf4 {[%clk 0:01:23.5]} 50... b2 {[%clk 0:00:16.1]} 51. g5+
{[%clk 0:01:24.4]} 51... Kg7 {[%clk 0:00:16.7]} 52. Kg4 {[%clk 0:01:25.2]} 52...
b1=Q {[%clk 0:00:16.1]} 53. h4 {[%clk 0:01:26.1]} 53... Qf5+ {[%clk 0:00:16.3]}
54. Kg3 {[%clk 0:01:25.4]} 54... Rd3+ {[%clk 0:00:16.4]} 55. Kg2 {[%clk
0:01:25.1]} 55... Qg4+ {[%clk 0:00:15.5]} 56. Kf2 {[%clk 0:01:25.4]} 56... Qf3+
{[%clk 0:00:15.5]} 57. Kg1 {[%clk 0:01:23.3]} 57... Rd1+ {[%clk 0:00:15.6]} 58.
Kh2 {[%clk 0:01:23.7]} 58... Rh1# {[%clk 0:00:15.6]} 0-1

[Event "*** SCC Grand Prix: Titled Tuesday Blitz"]
[Site "Chess.com"]
[Date "2020.07.14"]
[Round "6"]
[White "Batica1984"]
[Black "Matibar"]
[Result "1-0"]
[WhiteElo "2875"]
[BlackElo "2681"]
[TimeControl "180+1"]
[EndTime "11:06:42 PDT"]
[Termination "Batica1984 won by resignation"]

1. e4 {[%clk 0:03:00.9]} 1... d5 {[%clk 0:02:53.4]} 2. exd5 {[%clk 0:02:58.8]}
2... Qxd5 {[%clk 0:02:54.3]} 3. Nf3 {[%clk 0:02:54.5]} 3... Bg4 {[%clk
0:02:53.6]} 4. Be2 {[%clk 0:02:53.7]} 4... Nc6 {[%clk 0:02:53.2]} 5. d4 {[%clk
0:02:53.5]} 5... O-O-O {[%clk 0:02:52.6]} 6. c4 {[%clk 0:02:53]} 6... Qd7 {[%clk
0:02:50.9]} 7. d5 {[%clk 0:02:35.4]} 7... Bxf3 {[%clk 0:02:49.8]} 8. Bxf3 {[%clk
0:02:36.3]} 8... Ne5 {[%clk 0:02:49.8]} 9. Be2 {[%clk 0:01:59.1]} 9... e6 {[%clk
0:02:29.6]} 10. Nc3 {[%clk 0:01:58]} 10... Nf6 {[%clk 0:02:27]} 11. Bg5 {[%clk
0:01:48.4]} 11... Bb4 {[%clk 0:02:17.8]} 12. O-O {[%clk 0:01:32.4]} 12... Bxc3
{[%clk 0:02:07.2]} 13. bxc3 {[%clk 0:01:31.6]} 13... exd5 {[%clk 0:02:07.6]} 14.
cxd5 {[%clk 0:01:29.1]} 14... Qxd5 {[%clk 0:02:06.4]} 15. Qa4 {[%clk 0:01:27.9]}
15... a6 {[%clk 0:01:47.7]} 16. Rab1 {[%clk 0:01:21.3]} 16... Qc6 {[%clk
0:01:42.1]} 17. Qa5 {[%clk 0:01:15.6]} 17... Rd5 {[%clk 0:01:40.1]} 18. Qb4
{[%clk 0:01:12.6]} 18... Rhd8 {[%clk 0:01:20.9]} 19. Be3 {[%clk 0:00:56]} 19...
a5 {[%clk 0:00:52.5]} 20. Qh4 {[%clk 0:00:50.2]} 20... b6 {[%clk 0:00:48.1]} 21.
c4 {[%clk 0:00:47.8]} 21... Rd2 {[%clk 0:00:31.1]} 22. Bxd2 {[%clk 0:00:47]}
22... Rxd2 {[%clk 0:00:32]} 23. Rfe1 {[%clk 0:00:45.5]} 23... Qc5 {[%clk
0:00:25.2]} 24. Qg3 {[%clk 0:00:42.2]} 24... Ne4 {[%clk 0:00:22.4]} 25. Qf4
{[%clk 0:00:39.4]} 25... Rd4 {[%clk 0:00:10.6]} 26. Rb5 {[%clk 0:00:34.6]} 26...
Nc3 {[%clk 0:00:04.6]} 27. Qf5+ {[%clk 0:00:30.9]} 27... Nd7 {[%clk 0:00:03]}
28. Rxc5 {[%clk 0:00:30.5]} 28... Nxe2+ {[%clk 0:00:03.3]} 29. Kf1 {[%clk
0:00:30.2]} 29... bxc5 {[%clk 0:00:02.4]} 30. Rxe2 {[%clk 0:00:29.6]} 1-0

[Event "*** SCC Grand Prix: Titled Tuesday Blitz"]
[Site "Chess.com"]
[Date "2020.07.14"]
[Round "6"]
[White "nrvisakh"]
[Black "FMJoseHerrera"]
[Result "1-0"]
[WhiteElo "2781"]
[BlackElo "2490"]
[TimeControl "180+1"]
[EndTime "11:06:44 PDT"]
[Termination "nrvisakh won by resignation"]

1. e4 {[%clk 0:03:00.9]} 1... c5 {[%clk 0:02:59.1]} 2. Nf3 {[%clk 0:03:00.9]}
2... e6 {[%clk 0:02:56.6]} 3. d4 {[%clk 0:03:00.3]} 3... cxd4 {[%clk 0:02:56.9]}
4. Nxd4 {[%clk 0:03:01.2]} 4... a6 {[%clk 0:02:57.2]} 5. Bd3 {[%clk 0:02:56.8]}
5... Qc7 {[%clk 0:02:57]} 6. O-O {[%clk 0:02:56.1]} 6... b6 {[%clk 0:02:56.7]}
7. c4 {[%clk 0:02:55.9]} 7... Bb7 {[%clk 0:02:56.4]} 8. Nc3 {[%clk 0:02:56.1]}
8... d6 {[%clk 0:02:55.8]} 9. Qe2 {[%clk 0:02:56]} 9... Nd7 {[%clk 0:02:55.1]}
10. f4 {[%clk 0:02:54.5]} 10... Ngf6 {[%clk 0:02:54.4]} 11. Be3 {[%clk
0:02:49.7]} 11... Be7 {[%clk 0:02:53.3]} 12. f5 {[%clk 0:02:48.8]} 12... e5
{[%clk 0:02:48.8]} 13. Nf3 {[%clk 0:02:47.3]} 13... Nc5 {[%clk 0:02:27.8]} 14.
Bg5 {[%clk 0:02:45.3]} 14... Rc8 {[%clk 0:02:23.3]} 15. b3 {[%clk 0:02:42.4]}
15... b5 {[%clk 0:02:21.2]} 16. Nd2 {[%clk 0:02:29]} 16... b4 {[%clk 0:02:02.8]}
17. Bxf6 {[%clk 0:02:27.5]} 17... bxc3 {[%clk 0:02:01.9]} 18. Bxe7 {[%clk
0:02:25]} 18... cxd2 {[%clk 0:01:32.6]} 19. Bg5 {[%clk 0:02:21.2]} 19... h5
{[%clk 0:01:23.7]} 20. Bxd2 {[%clk 0:02:17.4]} 20... h4 {[%clk 0:01:22.6]} 21.
h3 {[%clk 0:02:15.7]} 21... Nd7 {[%clk 0:01:18.9]} 22. Kh2 {[%clk 0:02:13.4]}
22... Nf6 {[%clk 0:01:18.7]} 23. Bg5 {[%clk 0:02:11.7]} 23... Nh5 {[%clk
0:01:17.7]} 24. Bxh4 {[%clk 0:01:56.9]} 24... Nf4 {[%clk 0:01:16.9]} 25. Rxf4
{[%clk 0:01:56.7]} 25... exf4 {[%clk 0:01:17.8]} 26. Bf2 {[%clk 0:01:56.8]}
26... Kf8 {[%clk 0:01:09.8]} 27. Qg4 {[%clk 0:01:55.1]} 27... Qe7 {[%clk
0:01:02]} 28. Bd4 {[%clk 0:01:53]} 28... f6 {[%clk 0:00:54.7]} 29. Qxf4 {[%clk
0:01:45.7]} 29... Re8 {[%clk 0:00:52.2]} 30. Re1 {[%clk 0:01:45]} 30... Rh5
{[%clk 0:00:50.5]} 31. g4 {[%clk 0:01:40.4]} 31... Rh6 {[%clk 0:00:47.4]} 32.
Kg3 {[%clk 0:01:40.4]} 32... d5 {[%clk 0:00:31.4]} 33. cxd5 {[%clk 0:01:37.8]}
33... Bxd5 {[%clk 0:00:32.3]} 34. Rc1 {[%clk 0:01:05.1]} 34... Qb7 {[%clk
0:00:07.4]} 35. exd5 {[%clk 0:01:03.3]} 35... Qxd5 {[%clk 0:00:07.2]} 36. Bc5+
{[%clk 0:01:03.3]} 36... Re7 {[%clk 0:00:04.5]} 37. Bxe7+ {[%clk 0:01:02.7]}
37... Kxe7 {[%clk 0:00:05.4]} 38. Qc7+ {[%clk 0:00:53.4]} 38... Kf8 {[%clk
0:00:04.7]} 39. Qc8+ {[%clk 0:00:53.3]} 39... Ke7 {[%clk 0:00:05.1]} 1-0

[Event "*** SCC Grand Prix: Titled Tuesday Blitz"]
[Site "Chess.com"]
[Date "2020.07.14"]
[Round "6"]
[White "Korona_91"]
[Black "TheCount"]
[Result "0-1"]
[WhiteElo "2490"]
[BlackElo "2708"]
[TimeControl "180+1"]
[EndTime "11:06:44 PDT"]
[Termination "TheCount won by resignation"]

1. e4 {[%clk 0:03:00.9]} 1... c5 {[%clk 0:02:58.7]} 2. Nf3 {[%clk 0:03:01]} 2...
Nc6 {[%clk 0:02:53.7]} 3. Bb5 {[%clk 0:02:59.6]} 3... g6 {[%clk 0:02:53.4]} 4.
Bxc6 {[%clk 0:02:59.1]} 4... dxc6 {[%clk 0:02:54.3]} 5. O-O {[%clk 0:02:58.8]}
5... Bg7 {[%clk 0:02:50.9]} 6. h3 {[%clk 0:02:58.7]} 6... Nf6 {[%clk 0:02:50.9]}
7. d3 {[%clk 0:02:57.8]} 7... O-O {[%clk 0:02:50.4]} 8. Nc3 {[%clk 0:02:58.3]}
8... Nd7 {[%clk 0:02:40.6]} 9. Nh2 {[%clk 0:02:57.7]} 9... e5 {[%clk 0:02:38.4]}
10. f4 {[%clk 0:02:58]} 10... exf4 {[%clk 0:02:38.8]} 11. Bxf4 {[%clk
0:02:58.9]} 11... Ne5 {[%clk 0:02:37]} 12. Nf3 {[%clk 0:02:58.4]} 12... Qe7
{[%clk 0:02:30.8]} 13. Qd2 {[%clk 0:02:51.3]} 13... Nxf3+ {[%clk 0:02:21.9]} 14.
Rxf3 {[%clk 0:02:50.5]} 14... Be6 {[%clk 0:02:22.8]} 15. Raf1 {[%clk 0:02:46.2]}
15... Rad8 {[%clk 0:02:19.4]} 16. Bg5 {[%clk 0:02:42.8]} 16... f6 {[%clk
0:02:13.1]} 17. Bh6 {[%clk 0:02:39.9]} 17... c4 {[%clk 0:02:11.8]} 18. Bxg7
{[%clk 0:02:39.5]} 18... Kxg7 {[%clk 0:02:12.7]} 19. Qf2 {[%clk 0:02:36.8]}
19... cxd3 {[%clk 0:02:06.9]} 20. cxd3 {[%clk 0:02:36.7]} 20... c5 {[%clk
0:02:03]} 21. Qe3 {[%clk 0:02:28.8]} 21... Qd6 {[%clk 0:01:53]} 22. Kh1 {[%clk
0:02:23.9]} 22... b6 {[%clk 0:01:52.2]} 23. Qf2 {[%clk 0:02:21.5]} 23... Qe5
{[%clk 0:01:51.7]} 24. a4 {[%clk 0:02:19.4]} 24... Rd4 {[%clk 0:01:49]} 25. Qc2
{[%clk 0:01:54.5]} 25... Rb4 {[%clk 0:01:45.5]} 26. Qf2 {[%clk 0:01:47.9]} 26...
a5 {[%clk 0:01:37.4]} 27. Re1 {[%clk 0:01:38.2]} 27... Bb3 {[%clk 0:01:34]} 28.
Ra1 {[%clk 0:01:27.6]} 28... Rd4 {[%clk 0:01:33.5]} 29. h4 {[%clk 0:01:20.1]}
29... Rfd8 {[%clk 0:01:32.3]} 30. Rf1 {[%clk 0:01:18]} 30... R4d6 {[%clk
0:01:05.4]} 31. Nb5 {[%clk 0:01:17]} 31... Rxd3 {[%clk 0:01:00.8]} 32. Rxf6
{[%clk 0:01:17]} 32... Rd2 {[%clk 0:01:00.9]} 33. Qe3 {[%clk 0:00:55.9]} 33...
Bc4 {[%clk 0:00:54.7]} 34. R1f4 {[%clk 0:00:32.1]} 34... R8d3 {[%clk 0:00:43]}
35. Nd6 {[%clk 0:00:10.9]} 35... Rxe3 {[%clk 0:00:37.1]} 36. Rf7+ {[%clk
0:00:09.6]} 36... Bxf7 {[%clk 0:00:36.6]} 37. Rxf7+ {[%clk 0:00:10.3]} 37... Kh6
{[%clk 0:00:36.1]} 0-1

[Event "*** SCC Grand Prix: Titled Tuesday Blitz"]
[Site "Chess.com"]
[Date "2020.07.14"]
[Round "6"]
[White "Fighter008"]
[Black "Sjakkerntobi"]
[Result "0-1"]
[WhiteElo "2522"]
[BlackElo "2381"]
[TimeControl "180+1"]
[EndTime "11:06:44 PDT"]
[Termination "Sjakkerntobi won by checkmate"]

1. e4 {[%clk 0:03:00.9]} 1... e6 {[%clk 0:03:00]} 2. d4 {[%clk 0:03:00.1]} 2...
d5 {[%clk 0:03:00.6]} 3. Bd3 {[%clk 0:02:59.2]} 3... c5 {[%clk 0:02:59.8]} 4.
exd5 {[%clk 0:02:58.2]} 4... exd5 {[%clk 0:02:59.8]} 5. Nf3 {[%clk 0:02:58.3]}
5... Nf6 {[%clk 0:02:59.6]} 6. O-O {[%clk 0:02:57.3]} 6... c4 {[%clk 0:02:59.3]}
7. Be2 {[%clk 0:02:56.2]} 7... Bd6 {[%clk 0:02:51.9]} 8. b3 {[%clk 0:02:55.8]}
8... cxb3 {[%clk 0:02:51.3]} 9. axb3 {[%clk 0:02:56.7]} 9... O-O {[%clk
0:02:51.9]} 10. c4 {[%clk 0:02:53.8]} 10... Nc6 {[%clk 0:02:52]} 11. Nc3 {[%clk
0:02:49.6]} 11... h6 {[%clk 0:02:34.2]} 12. h3 {[%clk 0:02:34]} 12... Bf5 {[%clk
0:02:30]} 13. Be3 {[%clk 0:02:31.8]} 13... Nb4 {[%clk 0:02:19.5]} 14. Rc1 {[%clk
0:02:30.7]} 14... Rc8 {[%clk 0:02:13.5]} 15. Nb5 {[%clk 0:02:14.6]} 15... Bb8
{[%clk 0:02:09.8]} 16. Ne5 {[%clk 0:02:13.7]} 16... a6 {[%clk 0:02:00.3]} 17.
Nc3 {[%clk 0:02:11.5]} 17... Ne4 {[%clk 0:01:51.8]} 18. Nxe4 {[%clk 0:02:08.5]}
18... Bxe4 {[%clk 0:01:52.7]} 19. Bg4 {[%clk 0:02:08.3]} 19... Rc7 {[%clk
0:01:43.6]} 20. Qd2 {[%clk 0:01:37.2]} 20... Re7 {[%clk 0:01:25.9]} 21. Qxb4
{[%clk 0:01:34.2]} 21... f6 {[%clk 0:01:15.2]} 22. Nf3 {[%clk 0:01:25.3]} 22...
f5 {[%clk 0:01:15.3]} 23. Bh5 {[%clk 0:01:25]} 23... f4 {[%clk 0:01:11.9]} 24.
Bd2 {[%clk 0:01:25]} 24... g6 {[%clk 0:01:11.9]} 25. Bxg6 {[%clk 0:00:47.2]}
25... Bxg6 {[%clk 0:01:12.8]} 26. cxd5 {[%clk 0:00:42.5]} 26... Be4 {[%clk
0:01:08.6]} 27. Ne5 {[%clk 0:00:37.2]} 27... f3 {[%clk 0:00:49.5]} 28. gxf3
{[%clk 0:00:33.1]} 28... Rg7+ {[%clk 0:00:45]} 29. Kh2 {[%clk 0:00:30.9]} 29...
Rxf3 {[%clk 0:00:31.8]} 30. Rce1 {[%clk 0:00:14.7]} 30... Qh4 {[%clk 0:00:30.1]}
31. Rxe4 {[%clk 0:00:07.9]} 31... Qxh3# {[%clk 0:00:26.7]} 0-1

[Event "*** SCC Grand Prix: Titled Tuesday Blitz"]
[Site "Chess.com"]
[Date "2020.07.14"]
[Round "6"]
[White "KonstantinB_1983"]
[Black "freshfoodcompany"]
[Result "0-1"]
[WhiteElo "2407"]
[BlackElo "2262"]
[TimeControl "180+1"]
[EndTime "11:06:46 PDT"]
[Termination "freshfoodcompany won by checkmate"]

1. d4 {[%clk 0:03:00.9]} 1... d5 {[%clk 0:02:59.8]} 2. c4 {[%clk 0:03:00]} 2...
e6 {[%clk 0:03:00.1]} 3. Nc3 {[%clk 0:02:58.9]} 3... Be7 {[%clk 0:03:00.4]} 4.
e4 {[%clk 0:02:58.2]} 4... Nf6 {[%clk 0:02:54.3]} 5. e5 {[%clk 0:02:57.5]} 5...
Ne4 {[%clk 0:02:54.1]} 6. cxd5 {[%clk 0:02:51.2]} 6... Nxc3 {[%clk 0:02:49.3]}
7. bxc3 {[%clk 0:02:50]} 7... Qxd5 {[%clk 0:02:46.3]} 8. Nf3 {[%clk 0:02:49.2]}
8... O-O {[%clk 0:02:43]} 9. Bd3 {[%clk 0:02:44.6]} 9... c5 {[%clk 0:02:39.6]}
10. Qc2 {[%clk 0:02:43.6]} 10... h6 {[%clk 0:02:37.9]} 11. c4 {[%clk 0:02:25.8]}
11... Qd8 {[%clk 0:02:32.6]} 12. dxc5 {[%clk 0:02:24.4]} 12... Bxc5 {[%clk
0:02:29.6]} 13. O-O {[%clk 0:02:22.6]} 13... Nc6 {[%clk 0:02:27.8]} 14. Rd1
{[%clk 0:02:15]} 14... Qe7 {[%clk 0:02:19.2]} 15. Be4 {[%clk 0:02:08.2]} 15...
Qc7 {[%clk 0:02:12.6]} 16. Bf4 {[%clk 0:02:03.8]} 16... b6 {[%clk 0:02:07.2]}
17. Qe2 {[%clk 0:01:59.8]} 17... Bb7 {[%clk 0:02:05.7]} 18. Rac1 {[%clk
0:01:54.1]} 18... Rad8 {[%clk 0:02:00.7]} 19. Bb1 {[%clk 0:01:53.5]} 19... Nd4
{[%clk 0:01:57.8]} 20. Nxd4 {[%clk 0:01:50.6]} 20... Bxd4 {[%clk 0:01:56.5]} 21.
h4 {[%clk 0:01:22.1]} 21... Qc6 {[%clk 0:01:52.5]} 22. Qg4 {[%clk 0:01:21]}
22... Kh8 {[%clk 0:01:43]} 23. Rd3 {[%clk 0:01:06.1]} 23... Qc5 {[%clk
0:01:21.9]} 24. Rf1 {[%clk 0:00:57.4]} 24... Bxe5 {[%clk 0:01:18.4]} 25. Be3
{[%clk 0:00:48.1]} 25... Qc6 {[%clk 0:01:11.9]} 26. Rb3 {[%clk 0:00:43.4]} 26...
f5 {[%clk 0:01:05.9]} 27. Qh3 {[%clk 0:00:40.5]} 27... Rf6 {[%clk 0:00:57.7]}
28. f4 {[%clk 0:00:37.4]} 28... Rg6 {[%clk 0:00:48]} 29. Rf2 {[%clk 0:00:36]}
29... Rd1+ {[%clk 0:00:40.7]} 30. Kh2 {[%clk 0:00:34.5]} 30... Bd4 {[%clk
0:00:35.7]} 31. Bc2 {[%clk 0:00:31.2]} 31... Bxe3 {[%clk 0:00:32.8]} 32. Rxe3
{[%clk 0:00:29.6]} 32... Rd4 {[%clk 0:00:27.1]} 33. Bb3 {[%clk 0:00:22.1]} 33...
Rxf4 {[%clk 0:00:23.2]} 34. Rd2 {[%clk 0:00:20.4]} 34... Rfg4 {[%clk 0:00:20.7]}
35. g3 {[%clk 0:00:18.9]} 35... Qh1# {[%clk 0:00:18.6]} 0-1

[Event "*** SCC Grand Prix: Titled Tuesday Blitz"]
[Site "Chess.com"]
[Date "2020.07.14"]
[Round "6"]
[White "regular_legs"]
[Black "MF1966Idrisov"]
[Result "1-0"]
[WhiteElo "2525"]
[BlackElo "2332"]
[TimeControl "180+1"]
[EndTime "11:06:47 PDT"]
[Termination "regular_legs won by resignation"]

1. d4 {[%clk 0:03:00.9]} 1... d5 {[%clk 0:02:56.9]} 2. c4 {[%clk 0:03:01.2]}
2... c6 {[%clk 0:02:56.4]} 3. Nc3 {[%clk 0:02:58.7]} 3... Nf6 {[%clk 0:02:56.5]}
4. e3 {[%clk 0:02:59.3]} 4... g6 {[%clk 0:02:56.7]} 5. Nf3 {[%clk 0:02:58.5]}
5... Bg7 {[%clk 0:02:56.9]} 6. Be2 {[%clk 0:02:59.1]} 6... O-O {[%clk
0:02:56.6]} 7. O-O {[%clk 0:02:59.6]} 7... Bg4 {[%clk 0:02:56.1]} 8. cxd5 {[%clk
0:02:56.6]} 8... cxd5 {[%clk 0:02:55]} 9. Qb3 {[%clk 0:02:56.2]} 9... Bxf3
{[%clk 0:02:53.1]} 10. Bxf3 {[%clk 0:02:55.4]} 10... Nc6 {[%clk 0:02:44.5]} 11.
Nxd5 {[%clk 0:02:46]} 11... Na5 {[%clk 0:02:40.7]} 12. Nxf6+ {[%clk 0:02:44.2]}
12... Bxf6 {[%clk 0:02:40.4]} 13. Qa4 {[%clk 0:02:38.1]} 13... Rb8 {[%clk
0:02:34.9]} 14. Bd2 {[%clk 0:02:37]} 14... b6 {[%clk 0:02:34.9]} 15. Rac1 {[%clk
0:02:21.6]} 15... e5 {[%clk 0:02:31.4]} 16. Bb4 {[%clk 0:02:12.9]} 16... Re8
{[%clk 0:02:30]} 17. Rfd1 {[%clk 0:01:57.9]} 17... exd4 {[%clk 0:02:27.5]} 18.
Bc3 {[%clk 0:01:51.4]} 18... Qe7 {[%clk 0:02:10]} 19. Bxd4 {[%clk 0:01:49.6]}
19... Bxd4 {[%clk 0:02:09.4]} 20. Rxd4 {[%clk 0:01:50.5]} 20... Rec8 {[%clk
0:02:09.2]} 21. Rxc8+ {[%clk 0:01:39.6]} 21... Rxc8 {[%clk 0:02:08.5]} 22. g3
{[%clk 0:01:40.1]} 22... Qf6 {[%clk 0:01:52.7]} 23. Kg2 {[%clk 0:01:35.1]} 23...
Kg7 {[%clk 0:01:46.2]} 24. Bd5 {[%clk 0:01:21.2]} 24... Nc6 {[%clk 0:01:32.5]}
25. Rf4 {[%clk 0:01:17.5]} 25... Qd6 {[%clk 0:01:05.2]} 26. Rxf7+ {[%clk
0:01:16.3]} 26... Kh8 {[%clk 0:01:00.3]} 27. e4 {[%clk 0:00:49.1]} 27... a5
{[%clk 0:00:53.7]} 28. h4 {[%clk 0:00:29.9]} 28... Nb4 {[%clk 0:00:51.1]} 29.
Qd1 {[%clk 0:00:24.5]} 29... Qe5 {[%clk 0:00:40.2]} 30. Qd2 {[%clk 0:00:19.8]}
30... Rd8 {[%clk 0:00:21.3]} 31. Qh6 {[%clk 0:00:16.9]} 1-0

[Event "*** SCC Grand Prix: Titled Tuesday Blitz"]
[Site "Chess.com"]
[Date "2020.07.14"]
[Round "6"]
[White "Titus369"]
[Black "WelshTiger"]
[Result "1-0"]
[WhiteElo "2531"]
[BlackElo "2373"]
[TimeControl "180+1"]
[EndTime "11:06:47 PDT"]
[Termination "Titus369 won by checkmate"]

1. e4 {[%clk 0:03:00.9]} 1... c5 {[%clk 0:02:59.5]} 2. Nf3 {[%clk 0:02:56.1]}
2... Nc6 {[%clk 0:02:58.8]} 3. d4 {[%clk 0:02:54.2]} 3... cxd4 {[%clk
0:02:59.7]} 4. Nxd4 {[%clk 0:02:54.3]} 4... Nf6 {[%clk 0:03:00.1]} 5. Nc3 {[%clk
0:02:53.2]} 5... d6 {[%clk 0:03:00.6]} 6. h3 {[%clk 0:02:51]} 6... g6 {[%clk
0:02:59.4]} 7. g4 {[%clk 0:02:40]} 7... Bg7 {[%clk 0:02:58.7]} 8. Be3 {[%clk
0:02:40.2]} 8... O-O {[%clk 0:02:57]} 9. Bc4 {[%clk 0:02:30.9]} 9... a6 {[%clk
0:02:34.1]} 10. a4 {[%clk 0:02:27]} 10... Rb8 {[%clk 0:02:21.5]} 11. O-O {[%clk
0:02:22.1]} 11... Bd7 {[%clk 0:02:12]} 12. f4 {[%clk 0:02:12.3]} 12... Nxd4
{[%clk 0:02:05.5]} 13. Bxd4 {[%clk 0:02:11.7]} 13... b5 {[%clk 0:02:06.1]} 14.
axb5 {[%clk 0:02:05.7]} 14... axb5 {[%clk 0:02:07]} 15. Bb3 {[%clk 0:02:06.2]}
15... b4 {[%clk 0:02:06]} 16. Nd5 {[%clk 0:02:04.9]} 16... Nxd5 {[%clk
0:02:04.6]} 17. Bxd5 {[%clk 0:01:55.8]} 17... Bxd4+ {[%clk 0:02:03.6]} 18. Qxd4
{[%clk 0:01:55.4]} 18... Qb6 {[%clk 0:02:04.5]} 19. Qxb6 {[%clk 0:01:55.1]}
19... Rxb6 {[%clk 0:02:03.2]} 20. Ra7 {[%clk 0:01:55.6]} 20... Rd8 {[%clk
0:02:00.1]} 21. Rfa1 {[%clk 0:01:51.2]} 21... Bc6 {[%clk 0:01:24.6]} 22. Rxe7
{[%clk 0:01:48.5]} 22... Bxd5 {[%clk 0:01:24.4]} 23. exd5 {[%clk 0:01:49.4]}
23... Rc8 {[%clk 0:01:25.1]} 24. Raa7 {[%clk 0:01:48.5]} 24... Rf8 {[%clk
0:01:04]} 25. Rac7 {[%clk 0:01:46.2]} 25... Rb5 {[%clk 0:01:03.8]} 26. Kf2
{[%clk 0:01:45.4]} 26... Rxd5 {[%clk 0:01:03.7]} 27. Ke3 {[%clk 0:01:46]} 27...
h5 {[%clk 0:00:59.6]} 28. g5 {[%clk 0:01:44.7]} 28... Rd1 {[%clk 0:00:49.3]} 29.
Ke2 {[%clk 0:01:44.5]} 29... Rh1 {[%clk 0:00:47.4]} 30. f5 {[%clk 0:01:44.8]}
30... gxf5 {[%clk 0:00:35.2]} 31. g6 {[%clk 0:01:43.9]} 31... Kg7 {[%clk
0:00:35.7]} 32. gxf7 {[%clk 0:01:41.6]} 32... Rxh3 {[%clk 0:00:33.4]} 33. Kf2
{[%clk 0:01:41]} 33... Rh4 {[%clk 0:00:28.9]} 34. Kg3 {[%clk 0:01:37.9]} 34...
Re4 {[%clk 0:00:28.6]} 35. Red7 {[%clk 0:01:32.8]} 35... Re2 {[%clk 0:00:28.4]}
36. Kf4 {[%clk 0:01:26]} 36... b3 {[%clk 0:00:28.1]} 37. cxb3 {[%clk 0:01:23.2]}
37... Rxb2 {[%clk 0:00:27.3]} 38. Rc3 {[%clk 0:01:22.4]} 38... Rb8 {[%clk
0:00:25.4]} 39. Rg3+ {[%clk 0:01:21]} 39... Kh8 {[%clk 0:00:09]} 40. Kxf5 {[%clk
0:01:10.2]} 40... Rf2+ {[%clk 0:00:06.5]} 41. Kg6 {[%clk 0:01:09]} 41... Rb4
{[%clk 0:00:02.5]} 42. Rd8# {[%clk 0:01:08.6]} 1-0